Cogmind - Beta 16 --- EXPLORER MODE // 2025.12.05 @ 10:56:43 Player: K.K.Y. Result: Destroyed by Y-54 Guardian with Gatling Laser Performance ------------- Evolutions (0) 0 Regions Visited (4) 800 Robots Destroyed (41) 205 Value Destroyed (913) 913 Prototype IDs (12) 240 Alien Tech Used (0) 0 Bonus (0) 0 TOTAL SCORE: 2158 Bonus ------- None Cogmind --------- Core Integrity 0/250 Matter 188/300 Energy 6/100 System Corruption 1% Temperature Hot (221) Movement Treading (160) Location -7/Recycling Parts ------- > --- POWER (1) -------- (None) > --- PROPULSION (2) --- Spiked Treads Medium Treads > --- UTILITY (3) ------ Improved Signal Interpreter Improved Terrain Scanner Makeshift System Shield > --- WEAPON (2) ------- Makeshift Laser Makeshift Shrapnel Gun > --- INVENTORY (5) ---- Spread Laser Heavy Assault Rifle Missile Launcher Enhanced Flamer Peak State ------------ > --- POWER ------------ Improved Ion Engine > --- PROPULSION ------- Spiked Treads Medium Treads > --- UTILITY ---------- Improved Signal Interpreter Improved Terrain Scanner Makeshift System Shield > --- WEAPON ----------- Makeshift Laser Subdweller Beam Cannon > --- INVENTORY -------- Spread Laser Heavy Assault Rifle Makeshift Shrapnel Gun Missile Launcher Enhanced Flamer [Rating: 25] Favorites ----------- Power Improved Ion Engine Engine Improved Ion Engine Propulsion Light Treads Treads Light Treads Wheel Wheel Hover Unit Improved Hover Unit Flight Unit Flight Unit Utility Improved Terrain Scanner Device Improved Terrain Scanner Processor Improved Signal Interpreter Hackware Makeshift System Shield Weapon Makeshift Laser Energy Gun Makeshift Laser Energy Cannon Subdweller Beam Cannon Ballistic Gun Light Assault Rifle Ballistic Cannon Slug Cannon Build | -11 -10 -10 -10 -7 ------- Run | Yrd Mat Min Sub Rec Slots Evolved 1 | . 1 . . . Power . | . . . . . Propulsion . | . . . . . Utility 1 | . 1 . . . Weapon . | . . . . . Parts Attached 36 | . 20 5 10 1 Power 3 | . 1 1 1 . Engine 3 | . 1 1 1 . Core . | . . . . . Reactor . | . . . . . Propulsion 14 | . 9 . 4 1 Treads 6 | . 3 . 2 1 Leg . | . . . . . Wheel 2 | . 2 . . . Hover 4 | . 2 . 2 . Flight 2 | . 2 . . . Utility 9 | . 5 3 1 . Device 5 | . 3 2 . . Storage . | . . . . . Processor 3 | . 2 1 . . Hackware 1 | . . . 1 . Protection . | . . . . . Artifact . | . . . . . Weapon 10 | . 5 1 4 . Energy Gun 4 | . 3 . 1 . Energy Cannon 2 | . . 1 1 . Ballistic Gun 3 | . 2 . 1 . Ballistic Cannon 1 | . . . 1 . Launcher . | . . . . . Special Weapon . | . . . . . Impact Weapon . | . . . . . Slashing Weapon . | . . . . . Piercing Weapon . | . . . . . Special Melee Weapon . | . . . . . Unidentified Prototypes . | . . . . . Parts Lost 5 | . . 1 4 . Power 1 | . . . 1 . Propulsion 1 | . . . 1 . Utility 2 | . . 1 1 . Weapon 1 | . . . 1 . Highest Loss Streak 2 | . . 1 2 . To Critical Strikes 1 | . . . 1 . Average Backups 4 | 2 4 5 4 4 Power . | . . . . . Propulsion . | 1 1 2 . . Utility . | . . . . . Weapon 4 | . 1 2 4 4 Tool/Special . | . . . . . Unused Backups 7 | . 3 . 1 3 Power 1 | . 1 . . . Propulsion 2 | . 2 . . . Utility . | . . . . . Weapon 4 | . . . 1 3 Tool/Special . | . . . . . Average Slot Usage (%) 91 | . 66 93 95 97 Engine 11 | . 11 12 11 10 Treads 17 | . 14 . 17 25 Hover 4 | . 4 25 3 . Device 16 | . 3 22 19 12 Processor 11 | . 9 14 12 12 Hackware 4 | . . . 4 12 Energy Gun 11 | . 6 11 12 12 Energy Cannon 5 | . . 6 5 10 Ballistic Gun 1 | . 11 . . . Ballistic Cannon 4 | . . . 6 . Peak Build Rating 25 | . 14 17 23 25 Average Rating 18 | . 7 16 20 24 On Entrance 10 | . . 14 17 22 Avg Prop Armor Cover (%) . | . . . . . Naked Turns . | . . . . . Heaviest Build 18 | . 8 12 18 18 Greatest Support 48 | 3 40 14 40 48 Greatest Overweight (x) 3 | . 2 . 3 . Average Overweight (x) . | . . . . . Largest Inventory Capacity 5 | 5 5 5 5 5 Average Capacity 5 | 5 5 5 5 5 Most Carried 5 | 5 5 5 5 5 Average Carried 4 | 3 4 4 4 4 Final Capacity 5 | 5 5 5 5 5 Final Carried 5 | 5 5 5 5 4 Class Distribution -------------------- 54% | Hacker-Mutant 35% | Hacker-Skirmisher 8% | Hacker-Scout Dominant Class ---------------- Hacker-Mutant | -10/Materials Hacker-Scout | -10/Mines Hacker-Skirmisher | -10/Subcaves Hacker-Mutant | -7/Recycling Resources | -11 -10 -10 -10 -7 ----------- Run | Yrd Mat Min Sub Rec Matter Collected 984 | 178 342 62 347 55 Remotely . | . . . . . Salvage Created 1264 | . 499 172 473 120 Parts 95 | . 43 10 41 1 Haulers Intercepted 2 | . 2 . . . Recyclers Shooed 1 | . . 1 . . Parts Field Recycled . | . . . . . Retrieved Matter . | . . . . . Parts Self-Destructed . | . . . . . Prevented . | . . . . . Parts Restored . | . . . . . Kills | -11 -10 -10 -10 -7 ------- Run | Yrd Mat Min Sub Rec Combat Hostiles Destroyed 26 | . 6 2 16 2 Guns 18 | . 6 1 9 2 Cannons 8 | . . 1 7 . Classes Destroyed 13 | . 8 2 2 1 Worker 1 | . 1 . . . Builder 4 | . 3 1 . . Tunneler 4 | . 3 1 . . Hauler 2 | . 2 . . . Recycler 1 | . . 1 . . Mechanic 1 | . 1 . . . Turret 2 | . . . 2 . Watcher 2 | . 2 . . . Swarmer 8 | . 4 . 4 . Grunt 2 | . 2 . . . Sentry 2 | . . . . 2 Subdweller 12 | . . . 12 . Assembled 2 | . . 2 . . Best Kill Streak 6 | . 3 2 6 1 Combat Bots Only 4 | . 2 2 4 1 Max Kills in Single Turn 1 | . 1 1 1 1 Gunslinging . | . . . . . Exploded . | . . . . . Melee . | . . . . . Uniques/NPCs Destroyed . | . . . . . Combat | -11 -10 -10 -10 -7 -------- Run | Yrd Mat Min Sub Rec Hostile Shots Fired 198 | . 29 10 84 75 Missed 68 | . 8 4 35 21 Hits 130 | . 21 6 49 54 Melee 1 | . . 1 . . Projectile 129 | . 21 5 49 54 Critical Strikes 3 | . 1 . 2 . Damage Taken 863 | . 147 61 412 243 Core 255 | . 44 15 101 95 Absorbed by Shields . | . . . . . Ignored by Resistances 564 | . 93 38 264 169 Core Remaining (%) 100 | 100 . . . . Volleys Fired 173 | . 67 15 85 6 Largest 2 | . 2 2 2 2 Hottest 230 | . 50 110 190 230 Shots Fired 293 | . 92 22 168 11 Gun 203 | . 92 15 86 10 Cannon 90 | . . 7 82 1 Launcher . | . . . . . Special . | . . . . . Kinetic 96 | . 50 . 42 4 Thermal 171 | . 16 22 126 7 Explosive . | . . . . . Electromagnetic 26 | . 26 . . . Robot Hit Streak 40 | . 24 7 39 40 Robot Miss Streak 2 | . 2 1 1 . Penetration Max . | . . . . . Secondary Targets 1 | . 1 . . . Max Gunslinging Chain 1 | . 1 . . . Shots Hit Robots 164 | . 75 14 64 11 Core Hits 67 | . 26 9 27 5 Critical Kills 1 | . . . 1 . Critical Parts Destroyed . | . . . . . Critical Strikes 8 | . 1 1 5 1 Burn 5 | . 1 1 2 1 Destroy 3 | . . . 3 . Melee Attacks . | . . . . . Impact . | . . . . . Slashing . | . . . . . Piercing . | . . . . . Sneak Attacks . | . . . . . Combat Hostiles . | . . . . . Follow-up Attacks . | . . . . . Damage Inflicted 2774 | . 866 231 1324 353 Guns 1835 | . 794 125 593 323 Cannons 867 | . . 106 731 30 Explosions 72 | . 72 . . . Melee . | . . . . . Ramming . | . . . . . Kinetic 1054 | . 346 . 589 119 Thermal 1435 | . 235 231 735 234 Explosive . | . . . . . Electromagnetic 285 | . 285 . . . Impact . | . . . . . Slashing . | . . . . . Piercing . | . . . . . Highest Corruption 1 | . . 1 1 1 Average Corruption 1 | . . 1 1 1 Corruption Purged . | . . . . . Corruption Blocked . | . . . . . Effects 35 | . . 1 30 4 Message Errors 8 | . . . 6 2 Matter Fused 8 | . . 1 7 . Heat Flow Errors 7 | . . . 6 1 Energy Discharges 1 | . . . 1 . Parts Fused 1 | . . . 1 . Data Loss (minor) 4 | . . . 4 . Data Loss (major) 3 | . . . 2 1 Misfires 2 | . . . 2 . Alerts 1 | . . . 1 . Overload Shots 12 | . . . 6 6 Effects 2 | . . . 1 1 Energy Bleed 1 | . . . 1 . Heat Surge 1 | . . . . 1 Overflow Damage 9 | . . . 9 . Projectiles 9 | . . . 9 . Explosions . | . . . . . Melee . | . . . . . Knockbacks 5 | . . . 5 . Impact . | . . . . . Kinetic 5 | . . . 5 . Secondary . | . . . . . Self-Inflicted Damage 16 | . 16 . . . Shots 1 | . 1 . . . Rammed . | . . . . . Targets Rammed . | . . . . . Kicked . | . . . . . Crushed . | . . . . . Highest Temperature 535 | . 102 276 312 535 Average Temperature 82 | . 35 85 54 209 Received Heat Transfer 492 | . 93 60 201 138 Effects 4 | . . . . 4 Energy Bleed 1 | . . . . 1 Matter Decay 1 | . . . . 1 Short Circuit 1 | . . . . 1 Damage (minor) 1 | . . . . 1 Siege Activations . | . . . . . Martial Activations . | . . . . . Shielding Activations . | . . . . . Robots Disrupted . | . . . . . Combat Hostiles . | . . . . . Robots Corrupted . | . . . . . Combat Hostiles . | . . . . . Parts Fried 1 | . 1 . . . Impact Corruptions . | . . . . . Robots Melted 1 | . 1 . . . Combat Hostiles . | . . . . . Parts Melted 7 | . 3 1 1 2 Heat Transferred 3675 | . 655 666 1917 437 Parts Sabotaged . | . . . . . Parts Stolen . | . . . . . Parts Stripped . | . . . . . Power Chain Reactions 2 | . 2 . . . Alert | -11 -10 -10 -10 -7 ------- Run | Yrd Mat Min Sub Rec Maximum Alert Level . | . . . . . Low Security (%) 100 | 100 100 100 . 100 Level 1 . | . . . . . Level 2 . | . . . . . Level 3 . | . . . . . Level 4 . | . . . . . Level 5 . | . . . . . High Security . | . . . . . Max Security . | . . . . . Peak Influence 50 | . 50 5 . 20 Initial . | . . . . . Average 2 | . 5 . . . Influence Increases 433 | . 228 15 150 40 Destroy 0b10 Robot/C 280 | . 120 . 120 40 Destroy 0b10 Robot/NC 75 | . 60 15 . . Destroy Leader 38 | . 38 . . . Successful Hack 8 | . 8 . . . Destroy Structure 2 | . 2 . . . Lose Combat Pursuer 30 | . . . 30 . Influence Decreases 428 | . 228 15 150 35 Time Decay 423 | . 228 10 150 35 Lost Part 5 | . . 5 . . Squads Dispatched 1 | . . 1 . . Investigation 1 | . . 1 . . Extermination . | . . . . . Reinforcement . | . . . . . Assault . | . . . . . Garrison . | . . . . . Intercept . | . . . . . Searches Triggered . | . . . . . Construction Impeded . | . . . . . Haulers Reinforced . | . . . . . Active Scanning Responses . | . . . . . Cargo Convoy Interrupts . | . . . . . Stealth | -11 -10 -10 -10 -7 --------- Run | Yrd Mat Min Sub Rec Distress Signals 1 | . 1 . . . Communications Jammed . | . . . . . Distress Signals . | . . . . . Times Spotted 47 | . 12 14 18 3 Peak Tracking Total 13 | . 3 13 4 2 Tactical Retreats 3 | . . 2 1 . Traps | -11 -10 -10 -10 -7 ------- Run | Yrd Mat Min Sub Rec Traps Triggered 3 | . 3 . . . Indirectly . | . . . . . Trap Hack Attempts . | . . . . . Triggered . | . . . . . Disarmed . | . . . . . Reprogrammed . | . . . . . Reused . | . . . . . Traps Extracted . | . . . . . Installed . | . . . . . Triggered . | . . . . . Machines | -11 -10 -10 -10 -7 ---------- Run | Yrd Mat Min Sub Rec Machines Disabled 3 | . . . 3 . Max in Single Turn 1 | . . . 1 . Machines Repaired . | . . . . . Machines Dismantled . | . . . . . Machines Sabotaged . | . . . . . Overloaded Fab Kills . | . . . . . Hacking | -11 -10 -10 -10 -7 --------- Run | Yrd Mat Min Sub Rec Machines Accessed 6 | . 3 1 2 . Terminals 3 | . 3 . . . Fabricators . | . . . . . Repair Stations . | . . . . . Recycling Units . | . . . . . Scanalyzers . | . . . . . Garrison Access . | . . . . . Total Hacks 10 | . 5 1 4 . Successful 10 | . 5 1 4 . Failed . | . . . . . Catastrophic . | . . . . . Database Lockouts . | . . . . . Manual 3 | . 3 . . . Terminals 5 | . 5 . . . Fabricators . | . . . . . Repair Stations . | . . . . . Recycling Units . | . . . . . Scanalyzers . | . . . . . Garrison Access . | . . . . . Terminal Hacks 7 | . 2 1 4 . Record 3 | . . . 3 . Open Door 1 | . . 1 . . Zone Layout 2 | . 2 . . . Proto ID Catalog 1 | . . . 1 . Fabricator Hacks . | . . . . . Repair Station Hacks . | . . . . . Recycling Unit Hacks . | . . . . . Scanalyzer . | . . . . . Garrison Access Hacks . | . . . . . Unauthorized Hacks 3 | . 3 . . . Terminals 3 | . 3 . . . Botnet 3 | . 3 . . . Fabricators . | . . . . . Repair Stations . | . . . . . Recycling Units . | . . . . . Scanalyzers . | . . . . . Garrison Access . | . . . . . Data Cores Recovered . | . . . . . Used . | . . . . . Hacking Detections 2 | . 2 . . . Full Trace Events . | . . . . . Feedback Events . | . . . . . Feedback Blocked . | . . . . . Robot Schematics Acquired . | . . . . . Robots Built . | . . . . . Authchips . | . . . . . Time . | . . . . . Total Robot Build Rating . | . . . . . Part Schematics Acquired . | . . . . . Parts Built . | . . . . . Authchips . | . . . . . Time . | . . . . . Total Part Build Rating . | . . . . . Part Studies Acquired . | . . . . . Parts Repaired . | . . . . . Time . | . . . . . Parts Recycled . | . . . . . Recycled Matter . | . . . . . Retrieved Matter . | . . . . . Retrieved Components . | . . . . . Parts Scanalyzed . | . . . . . Part Schematics Acquired . | . . . . . Parts Damaged . | . . . . . Bothacking | -11 -10 -10 -10 -7 ------------ Run | Yrd Mat Min Sub Rec Used RIF Installer . | . . . . . Robots Hacked . | . . . . . Non-combat . | . . . . . Combat . | . . . . . Robot Hacks Applied . | . . . . . Relay Couplers Released . | . . . . . Fabnet Peak Effective % . | . . . . . Robots Rewired . | . . . . . Allies Hacked . | . . . . . Hacks Repelled . | . . . . . Allies | -11 -10 -10 -10 -7 -------- Run | Yrd Mat Min Sub Rec Total Allies . | . . . . . Largest Group . | . . . . . Highest-Rated Group . | . . . . . Highest-Rated Ally . | . . . . . Total Orders . | . . . . . Ally Attacks . | . . . . . Total Damage . | . . . . . Kills . | . . . . . Allies Corrupted . | . . . . . Allies Melted . | . . . . . Intel | -11 -10 -10 -10 -7 ------- Run | Yrd Mat Min Sub Rec Active Infowar (turns) 5534 | . 259 368 4287 620 Sensors 2801 | . . 306 2495 . Terrain 5517 | . 244 366 4287 620 Structural 15 | . 15 . . . Robot Analysis Total . | . . . . . Derelict Logs Recovered 1 | . . . 1 . Drone Launches . | . . . . . Drone Recoveries . | . . . . . Exploration | -11 -10 -10 -10 -7 ------------- Run | Yrd Mat Min Sub Rec Turns Passed 6297 | 26 996 368 4287 620 Spaces Moved 4310 | 41 895 556 2471 347 Core 65 | 41 2 . 22 . Treads 2549 | . 303 . 1899 347 Legs . | . . . . . Wheels 46 | . 46 . . . Hover 1398 | . 292 556 550 . Flight 252 | . 252 . . . Fastest Speed 37 | 50 37 56 56 160 Average Speed 121 | 50 87 56 143 160 Slowest Speed 200 | 50 160 56 200 160 Overloaded Moves . | . . . . . Propulsion Burnouts . | . . . . . Robots Hopped . | . . . . . Potential Cave-ins . | . . . . . Cave-ins Triggered . | . . . . . Exploration Rate (%) 68 | 3 97 90 98 54 Regions Visited 4 Branch Regions 3 Pre-discovered Areas 2 | . . . 2 . Known Exits Taken 4 | 1 1 1 1 . Unknown Exits Taken . | . . . . . Scrap Searched 6 | . . . 6 . Spaces Dug 1 | . . . 1 . Terrain Destroyed 8 | . 2 . 6 . Melee . | . . . . . Projectile 6 | . . . 6 . AOE 2 | . 2 . . . Terrain Rammed . | . . . . . Walls Destroyed . | . . . . . Machines Disabled . | . . . . . Actions | -11 -10 -10 -10 -7 --------- Run | Yrd Mat Min Sub Rec Total 5101 | 45 1028 590 3036 402 Wait 514 | . 6 8 456 44 Move 4306 | 40 894 555 2470 347 Hop . | . . . . . Pick Up 27 | 5 15 1 6 . Fast Attach 23 | . 15 5 3 . Attach 17 | . 12 . 4 1 Detach 7 | . 2 2 3 . Swap 6 | . . 1 4 1 Drop 28 | . 17 3 5 3 Fire 173 | . 67 15 85 6 Melee . | . . . . . Ram . | . . . . . Kick . | . . . . . Crush . | . . . . . Escape Stasis . | . . . . . Rewire . | . . . . . Trap . | . . . . . Miscellaneous . | . . . . . Route ------- -11/Scrapyard -10/Materials (discovered 4 exits: *Mat x3 / *Min) -10/Mines (discovered 3 exits: *Mat x2 / *Sub) -10/Subcaves (discovered 4 exits: *Mat x2 / *Rec / [*Scr]) -7/Recycling History --------- Turn | Location | Event 4 | -11/Scrapyard | Identified exit to Materials 4 | -11/Scrapyard | Discovered exit to Materials (range 16) 27 | -11/Scrapyard | Entered Materials 27 | -10/Materials | Evolved 1 slot: Utility x1 300 | -10/Materials | Build established: Hacker-Mutant 521 | -10/Materials | Identified exit to Materials 521 | -10/Materials | Discovered exit to Materials (range 7) 668 | -10/Materials | Discovered exit to Materials (range 14) 718 | -10/Materials | Identified exit to Mines 718 | -10/Materials | Discovered exit to Mines (range 7) 814 | -10/Materials | Discovered exit to Materials (range 13) 1023 | -10/Materials | Entered Mines 1080 | -10/Mines | Met a Derelict shopkeep closing up shop 1175 | -10/Mines | Assembled infested the area 1206 | -10/Mines | Discovered exit to Materials (range 11) 1382 | -10/Mines | Discovered exit to Materials (range 8) 1383 | -10/Mines | Identified exit to Subcaves 1383 | -10/Mines | Discovered exit to Subcaves (range 13) 1391 | -10/Mines | Entered Subcaves 1392 | -10/Subcaves | Approached by a straggling Scientist 1395 | -10/Subcaves | Build established: Hacker-Scout 1398 | -10/Subcaves | Disturbed a concealed Subdweller 1438 | -10/Subcaves | Learned location of Zion (-6) 1438 | -10/Subcaves | Met a Zionite searching for "candidates" 1540 | -10/Subcaves | Identified exit to Recycling 1540 | -10/Subcaves | Discovered exit to Recycling (range 15) 1625 | -10/Subcaves | Shifting Twisted Machinery released Enh. Flamer 1646 | -10/Subcaves | Shifting Twisted Machinery released Sub. Shrapnel Launcher 1855 | -10/Subcaves | Identified exit to Materials 1855 | -10/Subcaves | Discovered exit to Materials (range 15) 1879 | -10/Subcaves | Core integrity fell below 50% 1927 | -10/Subcaves | Build established: Hacker-Skirmisher 1989 | -10/Subcaves | Disturbed a concealed Subdweller 2369 | -10/Subcaves | Shifting Twisted Machinery released Mak. Shrapnel Gun 2429 | -10/Subcaves | Curiously followed by a Cobbler waking with a query about "LVR3C" 2481 | -10/Subcaves | Visited 4L-MR0's lab 2842 | -10/Subcaves | Shifting Twisted Machinery released Mak. Light Armor Plating 2894 | -10/Subcaves | Discovered exit to Materials (range 15) 2896 | -10/Subcaves | Visited Clippyterm 2901 | -10/Subcaves | Learned Factory fabricator intel 2932 | -10/Subcaves | Shifting Twisted Machinery released Sub. Shrapnel Launcher 3770 | -10/Subcaves | A swath of the cavern ceiling suddenly collapsed 4192 | -10/Subcaves | Build established: Hacker-Mutant 5325 | -10/Subcaves | Shifting Twisted Machinery released Multitool 5678 | -10/Subcaves | Entered Recycling 6284 | -7/Recycling | Core integrity fell below 20% 6298 | -7/Recycling | Destroyed by Y-54 Guardian with Gatling Laser Last Messages --------------- 06229_ Overheating: Short circuit. 06229_ Dropped Broken Sub. Beam Cannon. 06230_ Dropped Broken Imp. Ion Engine. 06231_ Overheating: Matter decay (-72). 06233_ Overheating: Imp. Terrain Scanner damaged (-4). 06236_ R-06 Scavenger collects Broken Sub. Beam Cannon. 06238_ R-06 Scavenger collects Broken Imp. Ion Engine. 06239_ Overheating: Energy bleed (-17). 06275_ Y-54 Guardian springs to life. 06286_ Y-54 Guardian destroyed. 06287_ R-06 Scavenger collects Lgt. Treads. 06294_ R-06 Scavenger destroyed. 06296_ Destroyed Wheel. 06296_ R-06 Scavenger collects Lgt. Ion Engine. 06297_ R-06 Scavenger collects Sml. Storage Unit. 06298_ U-05 Engineer destroyed. Map ----- +----------------------------------------------------+ | ??????????????????????????????? | | ??????????????????????????????? | | ??????????????????????????????? | | ??????????????????????????????? | | ??????????????????????????????? | | ??????????????????????????????? | | ??????????????????????????????? | | ??????????????????????????????? | | ??????????????????????????????? | | ??????????????????????????????? | | ?????? ???????????????????????? | | ?????? ???????????????????????? | | ?????? ???????????????????????? | | ???#?? ???????????????????????? | | ?????? ???????????????????????? | | ????#? #####??????????????????? | | ?????? ???????????????????? | | ???#?# ???????????????????? | | ?????" ??????? ????????????? | | ?????Y ????????????????????? | | ?????" #????????????????????? | | ?????# Y#????????#???????????? | | ?????#*%r#????#???????????????? | | ????? r#??????? ????????????? | | ?????#%rr#????????????????????? | | ???#?#@ #??????????????????##? | | ?????# rr#??? ????????????????? | | ??#??# + ?? ????????????????? | | ???### # ??????????? ?????? | | ???#!! #? !???????????????? | | ???#!! #?? ! ?????????????? | | ???#!! #??? ???????????? | | ???### ##?#?######??????????? | | ?????# #????????????????????# | | ?????# #??????##???????#????? | | ????## #???######??????????#? | | ####?# #??? #???????????? | | ???### # ? #???????????? | | ???#"" #? #???????????? | | ???#T # #???????????? | | ???### + #???????????? | | ????#% # #??????????? | | ???### #? #??????????#? | | ?????# #?? #???????????? | | ?????# # ??? #???#????#?? | | #????# #??#?#######??#?????#? | | ?????# #??????????########### | | ?#???# #??????????## | | ?????# #???????????# | | ?????# #?????#?????# | +----------------------------------------------------+ Best States ------------- Heat Dissipation 25 Energy Generation 12 Energy Capacity 265 Matter Stores 300 Matter Capacity 300 Sight Range 16 Robot Scan Range 15 Terrain Scan Range 16 Terrain Scan Density 160 Resistance: KI 35 Resistance: TH 35 Resistance: EX 35 Resistance: EM 35 Resistance: I 35 Resistance: S 35 Resistance: P 35 Evasion (%) 62 Recoil Reduction 2 Offensive Hacking 20 Defensive Hacking 11 Item Schematics ----------------- None Robot Schematics ------------------ None Fabricated ------------ Nothing Repaired ---------- Nothing Studied --------- None Alien Tech Used ----------------- None Achievements -------------- None Challenges ------------ None Game ------ Seed ZioniteWeldingCompactor Manual? 0 Play Time 00:32:14 Cumulative 170.5 hours Start 2025.12.05 @ 10:03:29 End 2025.12.05 @ 10:56:43 Sessions 1 Manual Loads 0 Difficulty Explorer Special Mode None Game No. 232 Rogue 0 Adventurer 0 Explorer 232 Win Type - Total 0 Types 0/0/0/0/0/0/0/0/0/0 Lore% 70 Gallery% 67 Achievement% 52 Wizard Run 0 Options --------- Layout 1 ASCII 0 Keyboard 0 Movement Mouse Keybinds 0 Fullscreen 1 Font 24/Smallcaps Map View 50x35 Zoom Use 0% Tactical HUD 1 Map Filters NONE Filters NONE Steam 1 RUN: 46f71317-7a75-487f-afe7-d233aad39228